Cogmind - Beta 10.2 @@@ ROGUE MODE // 2021.04.15 @ 18:34:13 Player: kicktown Result: Destroyed by G-47 Trooper with Particle Gun Performance ------------- Evolutions (1) 500 Regions Visited (2) 400 Robots Destroyed (18) 90 Value Destroyed (316) 316 Prototype IDs (0) 0 Alien Tech Used (0) 0 Bonus (0) 0 TOTAL SCORE: 1306 Bonus ------- None Cogmind --------- Core Integrity 0/400 Matter 114/300 Energy 76/100 System Corruption 0% Temperature Cool (32) Movement Treading (160) Location -9/Materials Parts ------- > --- POWER (1) -------- (None) > --- PROPULSION (4) --- Light Treads > --- UTILITY (2) ------ Small Storage Unit > --- WEAPON (2) ------- Particle Gun > --- INVENTORY (6) ---- Flight Unit Datajack Peak State ------------ > --- POWER ------------ Ion Engine > --- PROPULSION ------- Light Treads Compact Wheel > --- UTILITY ---------- Small Storage Unit Weapon Shielding > --- WEAPON ----------- Small Laser Light Assault Rifle > --- INVENTORY -------- Light Treads Wheel [Rating: 7] Favorites ----------- Power Light Ion Engine Engine Light Ion Engine Propulsion Light Treads Treads Light Treads Wheel Compact Wheel Flight Unit Flight Unit Utility Small Storage Unit Storage Small Storage Unit Protection Weapon Shielding Weapon Light Assault Rifle Energy Gun Small Laser Ballistic Gun Light Assault Rifle Launcher Rocket Launcher Special Weapon Mining Laser Special Melee Weapon Datajack Build | -11 -10 -9 ------- Run | Scr Mat Mat Slots Evolved 2 | . . 2 Power . | . . . Propulsion 2 | . . 2 Utility . | . . . Weapon . | . . . Parts Attached 34 | 7 16 11 Power 2 | 1 1 . Engine 2 | 1 1 . Core . | . . . Reactor . | . . . Propulsion 12 | 3 6 3 Treads 5 | 1 3 1 Leg . | . . . Wheel 6 | 2 2 2 Hover . | . . . Flight 1 | . 1 . Utility 3 | 1 1 1 Device . | . . . Storage 2 | 1 . 1 Processor . | . . . Hackware . | . . . Protection 1 | . 1 . Artifact . | . . . Weapon 17 | 2 8 7 Energy Gun 7 | 2 2 3 Energy Cannon . | . . . Ballistic Gun 5 | . 2 3 Ballistic Cannon . | . . . Launcher 1 | . . 1 Special Weapon 2 | . 2 . Impact Weapon . | . . . Slashing Weapon . | . . . Piercing Weapon . | . . . Special Melee Weapon 2 | . 2 . Unidentified Prototypes . | . . . Parts Lost 14 | . . 14 Power 1 | . . 1 Propulsion 3 | . . 3 Utility 2 | . . 2 Weapon 8 | . . 8 Highest Loss Streak 14 | . . 14 Average Slot Usage (%) 80 | . 91 61 Engine 12 | . 14 8 Treads 15 | . 18 9 Wheel 2 | . 3 2 Storage 13 | . 14 12 Protection 11 | . 12 9 Energy Gun 6 | . 10 . Ballistic Gun 11 | . 11 10 Special Weapon 5 | . 4 7 Naked Turns . | . . . Heaviest Build 12 | 12 12 11 Greatest Support 40 | 20 40 20 Greatest Overweight (x) 3 | 1 . 3 Average Overweight (x) . | . . . Largest Inventory Capacity 8 | 6 6 8 Average Capacity 6 | 5 6 6 Most Carried 6 | 2 6 6 Average Carried 4 | 1 4 5 Final Capacity 6 | 6 6 6 Final Carried 6 | 2 6 2 Class Distribution -------------------- 100% | Mutant Dominant Class ---------------- Mutant | -10/Materials Mutant | -9/Materials Resources | -11 -10 -9 ----------- Run | Scr Mat Mat Matter Collected 419 | 194 108 117 Remotely . | . . . Salvage Created 406 | . 108 298 Parts 32 | . 12 20 Haulers Intercepted . | . . . Recyclers Shooed 1 | . 1 . Parts Field Recycled . | . . . Retrieved Matter . | . . . Parts Self-Destructed . | . . . Prevented . | . . . Kills | -11 -10 -9 ------- Run | Scr Mat Mat Combat Hostiles Destroyed 14 | . 6 8 Guns 9 | . 6 3 AOE 5 | . . 5 Classes Destroyed 6 | . 2 4 Builder 2 | . . 2 Recycler 1 | . . 1 Watcher 1 | . 1 . Swarmer 9 | . 6 3 Grunt 4 | . . 4 Sentry 1 | . . 1 Best Kill Streak 11 | . 6 11 Combat Bots Only 8 | . 6 8 Max Kills in Single Turn 2 | . 2 2 Gunslinging 1 | . 1 . Exploded 2 | . . 2 Melee . | . . . Uniques/NPCs Destroyed . | . . . Combat | -11 -10 -9 -------- Run | Scr Mat Mat Damage Taken 1792 | . 172 1620 Core 436 | . 24 412 Absorbed by Shields . | . . . Core Remaining (%) 95 | 100 90 . Volleys Fired 56 | . 27 29 Largest 2 | . 2 2 Hottest 100 | . 100 100 Shots Fired 82 | . 47 35 Gun 64 | . 42 22 Cannon . | . . . Launcher 8 | . . 8 Special 10 | . 5 5 Kinetic 39 | . 21 18 Thermal 35 | . 26 9 Explosive 8 | . . 8 Electromagnetic . | . . . Robot Hit Streak 8 | . 8 8 Robot Miss Streak 4 | . 4 2 Penetration Max . | . . . Secondary Targets 1 | . 1 . Max Gunslinging Chain 1 | . 1 . Shots Hit Robots 43 | . 24 19 Core Hits 30 | . 10 20 Critical Hits . | . . . Critical Kills . | . . . Critical Parts Destroyed . | . . . Melee Attacks 1 | . 1 . Impact . | . . . Slashing . | . . . Piercing . | . . . Sneak Attacks 1 | . 1 . Combat Hostiles . | . . . Follow-up Attacks . | . . . Damage Inflicted 1119 | . 229 890 Guns 414 | . 229 185 Cannons . | . . . Explosions 705 | . . 705 Melee . | . . . Ramming . | . . . Kinetic 208 | . 74 134 Thermal 206 | . 155 51 Explosive 705 | . . 705 Electromagnetic . | . . . Impact . | . . . Slashing . | . . . Piercing . | . . . Highest Corruption . | . . . Average Corruption . | . . . Corruption Purged . | . . . Overload Shots . | . . . Overflow Damage 41 | . . 41 Projectiles . | . . . Explosions 41 | . . 41 Melee . | . . . Knockbacks . | . . . Impact . | . . . Kinetic . | . . . Secondary . | . . . Self-Inflicted Damage 28 | . . 28 Shots 3 | . . 3 Rammed . | . . . Targets Rammed . | . . . Kicked . | . . . Crushed . | . . . Highest Temperature 100 | . 100 33 Average Temperature 29 | . 39 7 Received Heat Transfer 693 | . . 693 Siege Activations . | . . . Robots Corrupted . | . . . Combat Hostiles . | . . . Parts Fried . | . . . Impact Corruptions . | . . . Robots Melted . | . . . Combat Hostiles . | . . . Parts Melted . | . . . Heat Transferred 474 | . 350 124 Parts Sabotaged . | . . . Parts Stolen . | . . . Parts Stripped . | . . . Power Chain Reactions . | . . . Missiles Intercepted . | . . . Alert | -11 -10 -9 ------- Run | Scr Mat Mat Peak Influence 192 | . 192 170 Initial . | . . . Average 52 | . 61 41 Maximum Alert Level . | . . . Low Security (%) 100 | 100 100 100 Level 1 . | . . . Level 2 . | . . . Level 3 . | . . . Level 4 . | . . . Level 5 . | . . . High Security . | . . . Max Security . | . . . Squads Dispatched 2 | . . 2 Investigation . | . . . Extermination . | . . . Reinforcement 2 | . . 2 Assault . | . . . Garrison . | . . . Intercept . | . . . Construction Impeded . | . . . Haulers Reinforced . | . . . Stealth | -11 -10 -9 --------- Run | Scr Mat Mat Distress Signals 1 | . 1 . Communications Jammed . | . . . Distress Signals . | . . . Times Spotted 23 | . 9 14 Peak Tracking Total 10 | . 6 10 Tactical Retreats 1 | . . 1 Traps | -11 -10 -9 ------- Run | Scr Mat Mat Traps Triggered . | . . . Indirectly . | . . . Trap Hack Attempts . | . . . Triggered . | . . . Disarmed . | . . . Reprogrammed . | . . . Reused . | . . . Traps Extracted . | . . . Installed . | . . . Triggered . | . . . Machines | -11 -10 -9 ---------- Run | Scr Mat Mat Machines Disabled 1 | . . 1 Max in Single Turn 1 | . . 1 Machines Sabotaged . | . . . Garrisons Compromised . | . . . Overloaded Fab Kills . | . . . Fab Network Shutdowns . | . . . Hacking | -11 -10 -9 --------- Run | Scr Mat Mat Machines Accessed 3 | . 2 1 Terminals 1 | . . 1 Fabricators . | . . . Repair Stations . | . . . Recycling Units 2 | . 2 . Scanalyzers . | . . . Garrison Access . | . . . Total Hacks 11 | . 8 3 Successful 4 | . 3 1 Failed 7 | . 5 2 Catastrophic . | . . . Database Lockouts . | . . . Manual 2 | . 2 . Terminals 3 | . . 3 Fabricators . | . . . Repair Stations . | . . . Recycling Units 8 | . 8 . Scanalyzers . | . . . Garrison Access . | . . . Terminal Hacks 1 | . . 1 Branch Access Points 1 | . . 1 Fabricator Hacks . | . . . Repair Station Hacks . | . . . Recycling Unit Hacks 2 | . 2 . Retrieve Components 2 | . 2 . Scanalyzer . | . . . Garrison Access Hacks . | . . . Unauthorized Hacks 1 | . 1 . Terminals . | . . . Fabricators . | . . . Repair Stations . | . . . Recycling Units 1 | . 1 . Reject 1 | . 1 . Scanalyzers . | . . . Garrison Access . | . . . Data Cores Recovered . | . . . Used . | . . . Hacking Detections 3 | . 2 1 Full Trace Events 1 | . 1 . Feedback Events . | . . . Feedback Blocked . | . . . Robot Schematics Acquired . | . . . Robots Built . | . . . Matter . | . . . Time . | . . . Total Robot Build Rating . | . . . Part Schematics Acquired . | . . . Parts Built . | . . . Matter . | . . . Time . | . . . Total Part Build Rating . | . . . Parts Repaired . | . . . Time . | . . . Parts Recycled . | . . . Recycled Matter . | . . . Retrieved Matter . | . . . Retrieved Components 6 | . 6 . Parts Scanalyzed . | . . . Part Schematics Acquired . | . . . Parts Damaged . | . . . Bothacking | -11 -10 -9 ------------ Run | Scr Mat Mat Used RIF Installer . | . . . Robots Hacked 1 | . 1 . Non-combat 1 | . 1 . Combat . | . . . Robot Hacks Applied 1 | . 1 . no_distress 1 | . 1 . Relay Couplers Released . | . . . Robots Rewired . | . . . Allies Hacked . | . . . Hacks Repelled . | . . . Allies | -11 -10 -9 -------- Run | Scr Mat Mat Total Allies . | . . . Largest Group . | . . . Highest-Rated Group . | . . . Highest-Rated Ally . | . . . Total Orders . | . . . Ally Attacks . | . . . Total Damage . | . . . Kills . | . . . Allies Corrupted . | . . . Allies Melted . | . . . Intel | -11 -10 -9 ------- Run | Scr Mat Mat Robot Analysis Total . | . . . Derelict Logs Recovered . | . . . Drone Launches . | . . . Drone Recoveries . | . . . Exploration | -11 -10 -9 ------------- Run | Scr Mat Mat Turns Passed 963 | 42 600 321 Spaces Moved 516 | 32 328 156 Core 5 | 1 . 4 Treads 342 | 1 211 130 Legs . | . . . Wheels 169 | 30 117 22 Hover . | . . . Flight . | . . . Fastest Speed 50 | 50 100 80 Average Speed 138 | 92 138 148 Slowest Speed 200 | 160 160 200 Overloaded Moves . | . . . Propulsion Burnouts . | . . . Robots Hopped . | . . . Cave-ins Triggered . | . . . Exploration Rate (%) 24 | 4 44 24 Regions Visited 2 Branch Regions . Pre-discovered Areas . | . . . Known Exits Taken . | . . . Unknown Exits Taken 2 | 1 1 . Scrap Searched . | . . . Spaces Dug 12 | . . 12 Terrain Destroyed 43 | . . 43 Melee . | . . . Projectile 5 | . . 5 AOE 38 | . . 38 Terrain Rammed . | . . . Walls Destroyed . | . . . Machines Disabled . | . . . Actions | -11 -10 -9 --------- Run | Scr Mat Mat Total 658 | 41 416 201 Wait 34 | . 31 3 Move 514 | 31 327 156 Hop . | . . . Pick Up 11 | 2 8 1 Fast Attach 16 | 7 2 7 Attach 6 | . 2 4 Detach . | . . . Swap 12 | . 12 . Drop 8 | 1 6 1 Fire 56 | . 27 29 Melee 1 | . 1 . Ram . | . . . Kick . | . . . Crush . | . . . Escape Stasis . | . . . Rewire . | . . . Trap . | . . . Miscellaneous . | . . . Route ------- -11/Scrapyard -10/Materials -9/Materials (discovered 3 exits: Min x2 / Sto) History --------- Turn | Location | Event 20 | -11/Scrapyard | Discovered new exit (range 16) 43 | -11/Scrapyard | Entered Materials 318 | -10/Materials | Build established: Mutant 616 | -10/Materials | Discovered new exit (range 8) 643 | -10/Materials | Entered another Materials area 643 | -9/Materials | Evolved 2 slots: Propulsion x2 702 | -9/Materials | Identified exit to Mines 702 | -9/Materials | Identified exit to Storage 938 | -9/Materials | Core integrity fell below 50% 947 | -9/Materials | Core integrity fell below 20% 964 | -9/Materials | Destroyed by G-47 Trooper with Particle Gun Last Messages --------------- 00948_ U-05 Engineer builds a Wall. 00949_ Acquired 53 matter. 00949_ U-05 Engineer lays Concrete. 00951_ K-01 Serf collects debris. 00952_ U-05 Engineer lays Concrete. 00954_ K-01 Serf collects debris. 00955_ K-01 Serf cleans the Repair Station. 00955_ U-05 Engineer lays Concrete. 00955_ Hvy. Assault Rifle destroyed. 00956_ Acquired Lgt. Treads. 00956_ U-05 Engineer lays Concrete. 00958_ K-01 Serf collects debris. 00958_ U-05 Engineer lays Concrete. 00960_ K-01 Serf collects debris. 00960_ U-05 Engineer lays Concrete. 00960_ Acquired Particle Gun. 00961_ U-05 Engineer lays Concrete. 00961_ Sml. Storage Unit destroyed. 00962_ U-05 Engineer lays Concrete. 00963_ K-01 Serf collects debris. Map ----- +----------------------------------------------------+ | ?????????????????????????????????????????????????? | | ?????????????????????????????????????????????????? | | ????????????????????????????????????>????????????? | | ?????????????????????????????????????????????????? | | ?????????????????????????????????????????????????? | | ?????????????????????????????????????????????????? | | ?????????????????????????????????????????????????? | | ?????????????????????????????????????????????????? | | ?????????????????????????????????????????????????? | | ?????????????????????????????????????????????????? | | ?????????????????????????????????????????????????? | | ?????????????????????????????????????????????????? | | ?????????????????????????????????????????????????? | | ?????????????????????????????????????????????????? | | ?????????????????????????????????????????????????? | | ?????????????????????????????????????????????????? | | ?????????????????? ?#????????????????????????????? | | ???????????????###+## ???????????????????????????? | | ???????????????# ???????????????????????????? | | ???????????????# ?>????????????????????????? | | ???????????????# ??????????????????????????? | | ???????????????# ## ?????????????????????????? | | ???????????????# ## "!?????????????????????????? | | ???????????????# ## =! ????????????????????????? | | ???????????????# ########??????????????????????? | | ???????????????# #*%k k@#??????????????????????? | | ??????????????# #*!Y =!#??????????????????????? | | ???#####+## # #=%gg #??????????????????????? | | ?? + " "" #??????????????????????? | | ?? = # "R"" #??????????????????????? | | ?? "% # """ #??????????????????????? | | ?????###+## # ###??????????????????????? | | ?????????? % ######????????????????????????? | | ?????????? ! = #?????????????????????????????? | | ??????????? #?????????????????????????????? | | ??????????? # #?????????????????????????????? | | ????????????"" # #?????????????????????????????? | | ???????????????# #?????????????????????????????? | | ???????????????# #?????????????????????????????? | | ???????????????# #?????????????????????????????? | | ?????########### ##????????????????????????????? | | ?????#!! [ #????????????????????????????? | | ?????#!! [ #????????????????????????????? | | ?????#!! #????????????????????????????? | | ?????#!! /????????????????????????????? | | ?????#!! # ???????????????????????????? | | #????#!! # ???????????????????????????? | | #????##### ####?#???????????????????????? | | ########?# """ ??????????????????????? | | # #?# """ ??????????????????????? | +----------------------------------------------------+ Best States ------------- Heat Dissipation 28 Energy Generation 10 Energy Capacity 250 Matter Stores 224 Matter Capacity 300 Sight Range 16 Terrain Scan Density 10 Weapon Shielding 33 Evasion (%) 44 Recoil Reduction 2 Item Schematics ----------------- None Robot Schematics ------------------ None Fabricated ------------ Nothing Alien Tech Used ----------------- None Achievements -------------- None Challenges ------------ None Game ------ Seed ProtonRiotSabre Manual? 0 Play Time 00:15:25 Cumulative 21.1 hours Start 2021.04.15 @ 18:20:35 End 2021.04.15 @ 18:34:13 Sessions 1 Manual Loads 0 Difficulty Rogue Special Mode None Game No. 11 Rogue 11 Adventurer 0 Explorer 0 Win Type - Total 0 Types 0/0/0/0/0/0/0/0/0 Lore% 10 Gallery% 24 Achievement% 20 Wizard Run 0 Options --------- ASCII 0 Keyboard 0 Movement Mouse Keybinds 0 Fullscreen 2 Font 18/TerminusBold Map View 76x50 Tactical HUD 1 Map Filters NONE Filters NONE Steam 1 RUN: 5cf98550-95f8-416f-93ba-88799d6cc441